[Event "FIDE U16 Olympiad_boards_1-80"]
[Site "Eindhoven, Netherlands"]
[Date "2023.08.13"]
[Round "1.10"]
[White "Erdogmus, Yagiz Kaan"]
[Black "Shamatava, Nikolozi"]
[Result "1-0"]
[TimeControl "2700+10"]
[WhiteElo "2353"]
[BlackElo "1872"]

1. e4 {[%clk 00:45:18]} {[%emt 00:00:01]} e5 {[%clk 00:45:19]} {[%emt
00:00:02]} 2. Nf3 {[%clk 00:45:26]} {[%emt 00:00:02]} Nc6 {[%clk 00:45:27]}
{[%emt 00:00:01]} 3. Bb5 {[%clk 00:45:29]} {[%emt 00:00:07]} a6 {[%clk
00:45:36]} {[%emt 00:00:01]} 4. Ba4 {[%clk 00:45:37]} {[%emt 00:00:02]} d6
{[%clk 00:45:45]} {[%emt 00:00:01]} 5. O-O {[%clk 00:44:57]} {[%emt 00:00:51]}
Bd7 {[%clk 00:45:54]} {[%emt 00:00:01]} 6. c3 {[%clk 00:43:12]} {[%emt
00:01:55]} g6 {[%clk 00:46:02]} {[%emt 00:00:01]} 7. d4 {[%clk 00:42:55]}
{[%emt 00:00:27]} Bg7 {[%clk 00:46:11]} {[%emt 00:00:02]} 8. Be3 {[%clk
00:42:14]} {[%emt 00:00:50]} h6 {[%clk 00:43:38]} {[%emt 00:02:43]} 9. Nbd2
{[%clk 00:41:09]} {[%emt 00:01:15]} exd4 {[%clk 00:40:43]} {[%emt 00:03:05]} 10.
cxd4 {[%clk 00:40:54]} {[%emt 00:00:25]} Nf6 {[%clk 00:40:46]} {[%emt
00:00:07]} 11. h3 {[%clk 00:39:33]} {[%emt 00:01:31]} O-O {[%clk 00:40:24]}
{[%emt 00:00:32]} 12. Re1 {[%clk 00:38:46]} {[%emt 00:00:58]} Nh5 {[%clk
00:36:06]} {[%emt 00:04:27]} 13. Rc1 {[%clk 00:37:49]} {[%emt 00:01:07]} Rc8
{[%clk 00:34:32]} {[%emt 00:01:44]} 14. a3 {[%clk 00:26:20]} {[%emt 00:11:39]}
b5 {[%clk 00:26:13]} {[%emt 00:08:30]} 15. Bb3 {[%clk 00:26:02]} {[%emt
00:00:27]} Na5 {[%clk 00:23:44]} {[%emt 00:02:38]} 16. Ba2 {[%clk 00:25:23]}
{[%emt 00:00:50]} Kh7 {[%clk 00:22:34]} {[%emt 00:01:20]} 17. e5 {[%clk
00:24:54]} {[%emt 00:00:39]} dxe5 {[%clk 00:19:55]} {[%emt 00:02:50]} 18. dxe5
{[%clk 00:24:58]} {[%emt 00:00:06]} Be6 {[%clk 00:18:33]} {[%emt 00:01:31]} 19.
Bxe6 {[%clk 00:23:05]} {[%emt 00:02:03]} fxe6 {[%clk 00:18:40]} {[%emt
00:00:04]} 20. b4 {[%clk 00:23:11]} {[%emt 00:00:04]} Nb7 {[%clk 00:18:18]}
{[%emt 00:00:32]} 21. Rc6 {[%clk 00:20:03]} {[%emt 00:03:17]} Qd5 {[%clk
00:17:05]} {[%emt 00:01:23]} 22. Qc2 {[%clk 00:19:27]} {[%emt 00:00:46]} Nf4
{[%clk 00:15:42]} {[%emt 00:01:34]} 23. Bxf4 {[%clk 00:13:56]} {[%emt
00:05:40]} Rxf4 {[%clk 00:15:50]} {[%emt 00:00:02]} 24. Re3 {[%clk 00:12:15]}
{[%emt 00:01:51]} Nd8 {[%clk 00:14:49]} {[%emt 00:01:11]} 25. Rc5 {[%clk
00:11:16]} {[%emt 00:01:09]} Qd7 {[%clk 00:14:48]} {[%emt 00:00:12]} 26. g3
{[%clk 00:10:53]} {[%emt 00:00:32]} Rf8 {[%clk 00:11:17]} {[%emt 00:03:41]} 27.
Nh4 {[%clk 00:07:43]} {[%emt 00:03:20]} Qe8 {[%clk 00:11:22]} {[%emt 00:00:04]}
28. f4 {[%clk 00:05:08]} {[%emt 00:02:46]} Qf7 {[%clk 00:10:20]} {[%emt
00:01:12]} 29. Rec3 {[%clk 00:04:37]} {[%emt 00:00:41]} c6 {[%clk 00:05:45]}
{[%emt 00:04:46]} 30. Ne4 {[%clk 00:04:44]} {[%emt 00:00:02]} Nb7 {[%clk
00:05:50]} {[%emt 00:00:05]} 31. Rxc6 {[%clk 00:04:38]} {[%emt 00:00:17]} Rxc6
{[%clk 00:05:57]} {[%emt 00:00:02]} 32. Rxc6 {[%clk 00:04:46]} {[%emt
00:00:02]} Rd8 {[%clk 00:05:28]} {[%emt 00:00:39]} 33. Rc7 {[%clk 00:03:40]}
{[%emt 00:01:16]} Rd7 {[%clk 00:05:00]} {[%emt 00:00:38]} 34. Rxd7 {[%clk
00:02:52]} {[%emt 00:00:58]} Qxd7 {[%clk 00:05:09]} 35. Nf6+ {[%clk 00:03:01]}
{[%emt 00:00:01]} Bxf6 {[%clk 00:05:17]} {[%emt 00:00:02]} 36. Qxg6+ {[%clk
00:03:00]} {[%emt 00:00:11]} Kh8 {[%clk 00:05:27]} 37. exf6 {[%clk 00:01:44]}
{[%emt 00:01:25]} Nd8 {[%clk 00:05:29]} {[%emt 00:00:08]} 38. Qxh6+ {[%clk
00:01:44]} {[%emt 00:00:10]} Kg8 {[%clk 00:05:38]} {[%emt 00:00:01]} 39. Qg5+
{[%clk 00:01:47]} {[%emt 00:00:07]} Kf8 {[%clk 00:05:32]} {[%emt 00:00:16]} 40.
Kh2 {[%clk 00:01:03]} {[%emt 00:00:54]} Qd2+ {[%clk 00:05:18]} {[%emt
00:00:24]} 41. Ng2 {[%clk 00:01:11]} {[%emt 00:00:02]} Qd7 {[%clk 00:05:27]}
{[%emt 00:00:01]} 42. h4 {[%clk 00:00:52]} {[%emt 00:00:29]} Nc6 {[%clk
00:05:36]} 43. h5 {[%clk 00:00:48]} {[%emt 00:00:15]} Nd4 {[%clk 00:05:45]} 44.
Nh4 {[%clk 00:00:47]} {[%emt 00:00:11]} Qc7 {[%clk 00:05:31]} {[%emt 00:00:24]}
45. Ng6+ {[%clk 00:00:34]} {[%emt 00:00:23]} Ke8 {[%clk 00:05:37]} {[%emt
00:00:04]} 46. Ne5 {[%clk 00:00:27]} {[%emt 00:00:17]} Qc2+ {[%clk 00:04:51]}
{[%emt 00:00:56]} 47. Kh3 {[%clk 00:00:35]} {[%emt 00:00:02]} Qf5+ {[%clk
00:05:00]} {[%emt 00:00:01]} 48. Qxf5 {[%clk 00:00:26]} {[%emt 00:00:20]} exf5
{[%clk 00:05:09]} 49. h6 {[%clk 00:00:33]} {[%emt 00:00:02]} 1-0

[Event "FIDE U16 Olympiad_boards_1-80"]
[Site "Eindhoven, Netherlands"]
[Date "2023.08.13"]
[Round "1.11"]
[White "Kirtadze, Anastasia"]
[Black "Kilic, Eray"]
[Result "1-0"]
[TimeControl "2700+10"]
[WhiteElo "1884"]
[BlackElo "2433"]

1. e4 {[%clk 00:45:19]} c5 {[%clk 00:45:19]} {[%emt 00:00:01]} 2. Nf3 {[%clk
00:45:27]} {[%emt 00:00:02]} d6 {[%clk 00:45:29]} {[%emt 00:00:01]} 3. d4
{[%clk 00:45:36]} {[%emt 00:00:01]} cxd4 {[%clk 00:45:38]} {[%emt 00:00:01]} 4.
Nxd4 {[%clk 00:45:45]} Nf6 {[%clk 00:45:46]} {[%emt 00:00:01]} 5. Nc3 {[%clk
00:45:54]} {[%emt 00:00:01]} a6 {[%clk 00:45:55]} 6. h3 {[%clk 00:46:03]} e5
{[%clk 00:46:04]} {[%emt 00:00:01]} 7. Nde2 {[%clk 00:46:12]} {[%emt 00:00:01]}
h5 {[%clk 00:46:13]} 8. g3 {[%clk 00:46:21]} {[%emt 00:00:01]} Be6 {[%clk
00:46:22]} {[%emt 00:00:01]} 9. Bg2 {[%clk 00:46:26]} {[%emt 00:00:05]} b5
{[%clk 00:46:31]} {[%emt 00:00:02]} 10. Be3 {[%clk 00:42:15]} {[%emt 00:04:20]}
Nbd7 {[%clk 00:46:28]} {[%emt 00:00:13]} 11. O-O {[%clk 00:39:28]} {[%emt
00:02:57]} Nb6 {[%clk 00:45:08]} {[%emt 00:01:30]} 12. b3 {[%clk 00:38:46]}
{[%emt 00:00:53]} b4 {[%clk 00:42:17]} {[%emt 00:03:01]} 13. Nd5 {[%clk
00:37:22]} {[%emt 00:01:34]} Nbxd5 {[%clk 00:42:25]} {[%emt 00:00:01]} 14. exd5
{[%clk 00:37:25]} {[%emt 00:00:07]} Bf5 {[%clk 00:42:34]} 15. c4 {[%clk
00:35:15]} {[%emt 00:02:20]} Qd7 {[%clk 00:42:42]} {[%emt 00:00:02]} 16. Kh2
{[%clk 00:34:53]} {[%emt 00:00:32]} Be7 {[%clk 00:34:24]} {[%emt 00:08:28]} 17.
c5 {[%clk 00:30:56]} {[%emt 00:04:07]} Rb8 {[%clk 00:34:09]} {[%emt 00:00:25]}
18. c6 {[%clk 00:29:54]} {[%emt 00:01:11]} Qc8 {[%emt 00:01:08]} 19. a3 {[%clk
00:28:16]} {[%emt 00:00:41]} Be4 {[%clk 00:22:05]} {[%emt 00:12:24]} 20. Bxe4
{[%clk 00:25:42]} {[%emt 00:02:44]} Nxe4 {[%clk 00:22:13]} {[%emt 00:00:02]} 21.
f3 {[%clk 00:24:56]} {[%emt 00:00:56]} Ng5 {[%clk 00:20:18]} {[%emt 00:02:05]}
22. Bxg5 {[%clk 00:21:36]} {[%emt 00:03:30]} Bxg5 {[%clk 00:20:26]} {[%emt
00:00:02]} 23. axb4 {[%clk 00:21:14]} {[%emt 00:00:31]} h4 {[%clk 00:20:14]}
{[%emt 00:00:23]} 24. g4 {[%clk 00:21:12]} {[%emt 00:00:12]} Rxb4 {[%clk
00:20:18]} {[%emt 00:00:06]} 25. Ra4 {[%clk 00:20:01]} {[%emt 00:01:21]} Rxa4
{[%clk 00:17:27]} {[%emt 00:03:01]} 26. bxa4 {[%clk 00:20:10]} {[%emt
00:00:02]} O-O {[%clk 00:17:35]} {[%emt 00:00:01]} 27. Qd3 {[%clk 00:19:03]}
{[%emt 00:01:17]} f5 {[%clk 00:17:13]} {[%emt 00:00:33]} 28. gxf5 {[%clk
00:17:48]} {[%emt 00:01:24]} Rxf5 {[%clk 00:17:21]} {[%emt 00:00:02]} 29. Rg1
{[%clk 00:17:56]} {[%emt 00:00:02]} e4 {[%clk 00:15:42]} {[%emt 00:01:49]} 30.
fxe4 {[%clk 00:16:53]} {[%emt 00:01:13]} Re5 {[%clk 00:15:25]} {[%emt
00:00:28]} 31. Qf3 {[%clk 00:15:51]} {[%emt 00:01:11]} Qe8 {[%clk 00:14:14]}
{[%emt 00:01:21]} 32. Nd4 {[%clk 00:14:23]} {[%emt 00:01:39]} Kh7 {[%clk
00:12:59]} {[%emt 00:01:25]} 33. Ne6 {[%clk 00:13:39]} {[%emt 00:00:54]} Bf6
{[%clk 00:13:08]} {[%emt 00:00:01]} 34. c7 {[%clk 00:13:00]} {[%emt 00:00:49]}
Qc8 {[%clk 00:12:57]} {[%emt 00:00:20]} 35. Rc1 {[%clk 00:12:34]} {[%emt
00:00:37]} Kg8 {[%clk 00:11:00]} {[%emt 00:02:06]} 36. Qb3 {[%clk 00:11:00]}
{[%emt 00:01:43]} Rxe6 {[%clk 00:08:24]} {[%emt 00:02:47]} 37. dxe6 {[%clk
00:11:05]} {[%emt 00:00:05]} Be5+ {[%clk 00:08:33]} 38. Kh1 {[%clk 00:10:27]}
{[%emt 00:00:47]} Kh7 {[%clk 00:08:41]} {[%emt 00:00:02]} 39. e7 {[%clk
00:10:03]} {[%emt 00:00:35]} Bg3 {[%clk 00:08:50]} {[%emt 00:00:01]} 40. Kg2
{[%clk 00:10:10]} {[%emt 00:00:03]} d5 {[%clk 00:06:26]} {[%emt 00:02:34]} 41.
Qxd5 {[%clk 00:09:56]} {[%emt 00:00:24]} 1-0

[Event "FIDE U16 Olympiad_boards_1-80"]
[Site "Eindhoven, Netherlands"]
[Date "2023.08.13"]
[Round "1.12"]
[White "Akat, Elifnaz"]
[Black "Mgeladze, Kesaria"]
[Result "1/2-1/2"]
[TimeControl "2700+10"]
[WhiteElo "1726"]
[BlackElo "1660"]

1. e4 {[%clk 00:45:17]} {[%emt 00:00:02]} c5 {[%clk 00:45:19]} {[%emt
00:00:01]} 2. b3 {[%clk 00:45:24]} {[%emt 00:00:03]} Nc6 {[%clk 00:45:18]}
{[%emt 00:00:10]} 3. Bb2 {[%clk 00:45:32]} {[%emt 00:00:02]} e5 {[%clk
00:45:22]} {[%emt 00:00:07]} 4. Bb5 {[%clk 00:44:20]} {[%emt 00:01:21]} Nd4
{[%clk 00:44:59]} {[%emt 00:00:33]} 5. Bf1 {[%clk 00:42:03]} {[%emt 00:02:28]}
Nf6 {[%clk 00:36:36]} {[%emt 00:08:32]} 6. d3 {[%clk 00:40:45]} {[%emt
00:01:28]} d5 {[%clk 00:35:38]} {[%emt 00:01:09]} 7. Nd2 {[%clk 00:39:37]}
{[%emt 00:01:18]} Bd6 {[%clk 00:32:34]} {[%emt 00:03:13]} 8. c3 {[%clk
00:34:50]} {[%emt 00:04:58]} Nc6 {[%clk 00:32:33]} {[%emt 00:00:11]} 9. g3
{[%clk 00:34:40]} {[%emt 00:00:20]} O-O {[%clk 00:31:21]} {[%emt 00:01:21]} 10.
Bg2 {[%clk 00:34:48]} {[%emt 00:00:03]} Be6 {[%clk 00:31:13]} {[%emt 00:00:17]}
11. Ne2 {[%clk 00:34:26]} {[%emt 00:00:32]} Qd7 {[%clk 00:25:20]} {[%emt
00:06:03]} 12. h3 {[%clk 00:31:50]} {[%emt 00:02:47]} Rad8 {[%clk 00:19:28]}
{[%emt 00:06:01]} 13. Nf1 {[%clk 00:30:58]} {[%emt 00:01:02]} Bc7 {[%clk
00:18:50]} {[%emt 00:00:48]} 14. Ba3 {[%clk 00:28:48]} {[%emt 00:02:21]} dxe4
{[%clk 00:17:31]} {[%emt 00:01:29]} 15. dxe4 {[%clk 00:28:21]} {[%emt
00:00:36]} Qxd1+ {[%clk 00:16:46]} {[%emt 00:00:55]} 16. Rxd1 {[%clk 00:28:30]}
{[%emt 00:00:02]} Rxd1+ {[%clk 00:16:54]} {[%emt 00:00:01]} 17. Kxd1 {[%clk
00:28:39]} {[%emt 00:00:02]} Rd8+ {[%clk 00:17:03]} 18. Kc2 {[%clk 00:28:38]}
{[%emt 00:00:10]} c4 {[%clk 00:16:47]} {[%emt 00:00:26]} 19. Nd2 {[%clk
00:25:07]} {[%emt 00:03:41]} cxb3+ {[%clk 00:12:50]} {[%emt 00:04:07]} 20. axb3
{[%clk 00:25:15]} {[%emt 00:00:02]} b5 {[%clk 00:12:29]} {[%emt 00:00:31]} 21.
Nc1 {[%clk 00:22:43]} {[%emt 00:02:42]} a5 {[%clk 00:11:20]} {[%emt 00:01:19]}
22. Bc5 {[%clk 00:22:25]} {[%emt 00:00:28]} Nd7 {[%clk 00:11:14]} {[%emt
00:00:17]} 23. Be3 {[%clk 00:21:24]} {[%emt 00:01:18]} Bb6 {[%clk 00:10:42]}
{[%emt 00:00:35]} 24. Bxb6 {[%clk 00:21:19]} {[%emt 00:00:16]} Nxb6 {[%clk
00:10:51]} {[%emt 00:00:01]} 25. Nd3 {[%clk 00:21:28]} {[%emt 00:00:01]} b4
{[%clk 00:09:19]} {[%emt 00:01:42]} 26. f4 {[%clk 00:18:47]} {[%emt 00:02:51]}
bxc3 {[%clk 00:09:27]} {[%emt 00:00:02]} 27. Kxc3 {[%clk 00:18:16]} {[%emt
00:00:41]} exf4 {[%clk 00:08:26]} {[%emt 00:01:11]} 28. gxf4 {[%clk 00:16:31]}
{[%emt 00:01:55]} Nd4 {[%clk 00:07:40]} {[%emt 00:00:56]} 29. Bf1 {[%clk
00:14:19]} {[%emt 00:02:21]} a4 {[%clk 00:06:42]} {[%emt 00:01:08]} 30. bxa4
{[%clk 00:11:40]} {[%emt 00:02:50]} Nxa4+ {[%clk 00:06:50]} 31. Kb4 {[%clk
00:11:48]} {[%emt 00:00:01]} Bd7 {[%clk 00:05:33]} {[%emt 00:01:29]} 32. Ne5
{[%clk 00:09:44]} {[%emt 00:02:14]} Nc6+ {[%clk 00:05:41]} {[%emt 00:00:01]} 33.
Nxc6 {[%clk 00:08:55]} {[%emt 00:00:59]} Bxc6 {[%clk 00:05:50]} 34. Rh2 {[%clk
00:08:04]} {[%emt 00:01:01]} Nb2 {[%clk 00:03:19]} {[%emt 00:02:41]} 35. Kc5
{[%clk 00:06:44]} {[%emt 00:01:30]} Ba8 {[%clk 00:02:52]} {[%emt 00:00:37]} 36.
Ba6 {[%clk 00:05:22]} {[%emt 00:01:32]} Na4+ {[%clk 00:02:11]} {[%emt
00:00:51]} 37. Kc4 {[%clk 00:04:42]} {[%emt 00:00:50]} Nb6+ {[%clk 00:01:56]}
{[%emt 00:00:25]} 38. Kc5 {[%clk 00:04:34]} {[%emt 00:00:18]} Nd7+ {[%clk
00:02:05]} {[%emt 00:00:01]} 39. Kb4 {[%clk 00:03:38]} {[%emt 00:01:06]} Nf6
{[%clk 00:02:07]} {[%emt 00:00:09]} 40. Re2 {[%clk 00:03:05]} {[%emt 00:00:42]}
Bxe4 {[%clk 00:01:20]} {[%emt 00:00:57]} 41. Nxe4 {[%clk 00:03:03]} {[%emt
00:00:12]} Rd4+ {[%clk 00:01:30]} 42. Kc3 {[%clk 00:03:09]} {[%emt 00:00:05]}
Rxe4 {[%clk 00:01:38]} {[%emt 00:00:02]} 43. Rxe4 {[%clk 00:03:15]} {[%emt
00:00:03]} Nxe4+ {[%clk 00:01:46]} {[%emt 00:00:01]} 44. Kd4 {[%clk 00:03:22]}
{[%emt 00:00:03]} Nf6 {[%clk 00:01:18]} {[%emt 00:00:39]} 45. Bf1 {[%clk
00:03:07]} {[%emt 00:00:25]} Nh5 {[%clk 00:01:07]} {[%emt 00:00:21]} 46. Ke3
{[%clk 00:02:05]} {[%emt 00:01:12]} g6 {[%clk 00:00:36]} {[%emt 00:00:42]} 47.
Be2 {[%clk 00:02:11]} {[%emt 00:00:03]} Ng3 {[%clk 00:00:45]} {[%emt 00:00:01]}
48. Bc4 {[%clk 00:02:04]} {[%emt 00:00:17]} Kg7 {[%clk 00:00:48]} {[%emt
00:00:07]} 49. Kf3 {[%clk 00:02:11]} {[%emt 00:00:03]} Nf5 {[%clk 00:00:55]}
{[%emt 00:00:03]} 50. Bf1 {[%clk 00:02:15]} {[%emt 00:00:06]} Nd6 {[%clk
00:00:51]} {[%emt 00:00:11]} 51. Bd3 {[%clk 00:02:12]} {[%emt 00:00:16]} Kf6
{[%clk 00:00:49]} {[%emt 00:00:13]} 52. Bc2 {[%clk 00:02:10]} {[%emt 00:00:12]}
Nf5 {[%clk 00:00:41]} {[%emt 00:00:17]} 53. Bd1 {[%clk 00:01:49]} {[%emt
00:00:31]} h5 {[%clk 00:00:46]} {[%emt 00:00:05]} 54. Ba4 {[%clk 00:01:38]}
{[%emt 00:00:21]} Nh4+ {[%clk 00:00:22]} {[%emt 00:00:34]} 55. Kg3 {[%clk
00:01:44]} {[%emt 00:00:05]} Nf5+ {[%clk 00:00:31]} 56. Kf3 {[%clk 00:01:53]}
{[%emt 00:00:01]} Nd4+ {[%clk 00:00:26]} {[%emt 00:00:15]} 57. Ke4 {[%clk
00:01:44]} {[%emt 00:00:19]} Ne6 {[%emt 00:00:20]} 58. Bd1 {[%clk 00:01:43]} h4
{[%clk 00:00:20]} {[%emt 00:00:15]} 59. Kf3 {[%clk 00:01:43]} {[%emt 00:00:10]}
Nd4+ {[%clk 00:00:19]} {[%emt 00:00:11]} 60. Ke4 {[%clk 00:01:21]} {[%emt
00:00:32]} Nf5 {[%clk 00:00:21]} {[%emt 00:00:08]} 61. Kf3 {[%clk 00:01:30]}
{[%emt 00:00:01]} g5 {[%clk 00:00:26]} {[%emt 00:00:06]} 62. Ba4 {[%clk
00:01:06]} {[%emt 00:00:33]} gxf4 {[%clk 00:00:16]} {[%emt 00:00:20]} 63. Kxf4
{[%clk 00:01:15]} {[%emt 00:00:02]} Nh6 {[%clk 00:00:19]} {[%emt 00:00:07]} 64.
Bc2 {[%clk 00:01:10]} {[%emt 00:00:14]} Ng8 {[%clk 00:00:13]} {[%emt 00:00:16]}
65. Ke4 {[%emt 00:00:06]} Ke5+ 1/2-1/2

[Event "FIDE U16 Olympiad_boards_1-80"]
[Site "Eindhoven, Netherlands"]
[Date "2023.08.13"]
[Round "1.13"]
[White "Han, Yichen"]
[Black "Bogdanov, Artyom"]
[Result "1-0"]
[TimeControl "2700+10"]
[WhiteElo "2398"]
[BlackElo "1852"]

1. d4 {[%clk 00:45:19]} Nf6 {[%clk 00:45:18]} {[%emt 00:00:02]} 2. Nf3 {[%clk
00:45:28]} {[%emt 00:00:01]} e6 {[%clk 00:45:27]} {[%emt 00:00:01]} 3. Bf4
{[%clk 00:45:13]} {[%emt 00:00:25]} c5 {[%clk 00:45:33]} {[%emt 00:00:04]} 4.
e3 {[%clk 00:45:17]} {[%emt 00:00:06]} Nc6 {[%clk 00:45:29]} {[%emt 00:00:14]}
5. Nbd2 {[%clk 00:45:13]} {[%emt 00:00:14]} Be7 {[%clk 00:43:31]} {[%emt
00:02:08]} 6. h3 {[%clk 00:45:09]} {[%emt 00:00:14]} b6 {[%clk 00:42:44]}
{[%emt 00:00:57]} 7. Nc4 {[%clk 00:41:47]} {[%emt 00:03:32]} d5 {[%clk
00:37:13]} {[%emt 00:05:41]} 8. Nce5 {[%clk 00:41:47]} {[%emt 00:00:09]} Nxe5
{[%clk 00:35:26]} {[%emt 00:01:59]} 9. Nxe5 {[%clk 00:41:01]} {[%emt 00:00:56]}
O-O {[%clk 00:32:41]} {[%emt 00:02:54]} 10. Nc6 {[%clk 00:39:56]} {[%emt
00:01:15]} Qe8 {[%clk 00:32:20]} {[%emt 00:00:30]} 11. Nxe7+ {[%clk 00:39:50]}
{[%emt 00:00:17]} Qxe7 {[%clk 00:32:28]} {[%emt 00:00:02]} 12. c3 {[%clk
00:39:24]} {[%emt 00:00:37]} h6 {[%clk 00:29:12]} {[%emt 00:03:26]} 13. Bd3
{[%clk 00:39:18]} {[%emt 00:00:15]} a5 {[%clk 00:27:18]} {[%emt 00:02:04]} 14.
Qe2 {[%clk 00:38:07]} {[%emt 00:01:20]} Bb7 {[%clk 00:20:53]} {[%emt 00:06:35]}
15. h4 {[%clk 00:35:42]} {[%emt 00:02:35]} Nd7 {[%clk 00:16:33]} {[%emt
00:04:31]} 16. Qg4 {[%clk 00:33:55]} {[%emt 00:01:57]} Nf6 {[%clk 00:09:29]}
{[%emt 00:07:14]} 17. Qf3 {[%clk 00:28:31]} {[%emt 00:05:34]} Ne4 {[%clk
00:09:02]} {[%emt 00:00:37]} 18. Bxe4 {[%clk 00:26:33]} {[%emt 00:02:08]} dxe4
{[%clk 00:09:05]} {[%emt 00:00:07]} 19. Qg3 {[%clk 00:26:35]} {[%emt 00:00:08]}
Qf6 {[%clk 00:08:38]} {[%emt 00:00:35]} 20. h5 {[%clk 00:23:07]} {[%emt
00:03:40]} Kh7 {[%clk 00:07:15]} {[%emt 00:01:33]} 21. Rh4 {[%clk 00:21:11]}
{[%emt 00:02:06]} Qf5 {[%clk 00:06:57]} {[%emt 00:00:28]} 22. O-O-O {[%clk
00:19:01]} {[%emt 00:02:19]} cxd4 {[%clk 00:05:52]} {[%emt 00:01:16]} 23. exd4
{[%clk 00:17:48]} {[%emt 00:01:21]} Bd5 {[%clk 00:05:12]} {[%emt 00:00:51]} 24.
Rg4 {[%clk 00:16:19]} {[%emt 00:01:39]} Rg8 {[%clk 00:04:53]} {[%emt 00:00:30]}
25. Be3 {[%clk 00:15:45]} {[%emt 00:00:44]} Qxh5 {[%clk 00:03:31]} {[%emt
00:01:32]} 26. Rh4 {[%clk 00:14:24]} {[%emt 00:01:31]} Qg6 {[%clk 00:03:34]}
{[%emt 00:00:06]} 27. Qh3 {[%clk 00:13:29]} {[%emt 00:01:06]} Qf5 {[%clk
00:01:21]} {[%emt 00:02:22]} 28. Rxh6+ {[%clk 00:13:26]} {[%emt 00:00:14]} 1-0